fUST/lending_fUST_20251108
["ID","MTS","AMOUNT","RATE_DAILY","PERIOD"]
[393373983,1762543838698,-10162.8454622,0.00017,2]
[393373985,1762543838707,-235.29,0.00017,2]
[393373987,1762543838716,-235.29,0.000171,2]
[393373989,1762543838726,-235.29,0.000171,2]
[393373991,1762543838735,-235.29,0.000172,2]
[393373993,1762543838745,-235.29,0.000172,2]
[393373995,1762543838754,-235.29,0.000173,2]
[393373997,1762543838763,-600.0,0.00017329,2]
[393373999,1762543838773,-300.0,0.00017339,2]
[393374001,1762543838783,-300.0,0.00017339,2]
[393374003,1762543838794,-300.0,0.00017339,2]
[393374005,1762543838804,-300.0,0.00017339,2]
[393374007,1762543838814,-300.0,0.00017339,2]
[393374009,1762543838825,-300.0,0.00017339,2]
[393374011,1762543838835,-300.0,0.00017339,2]
[393374013,1762543838850,-300.0,0.00017339,2]
[393374015,1762543838861,-300.0,0.00017339,2]
[393374017,1762543838872,-300.0,0.00017339,2]
[393374019,1762543838883,-300.0,0.00017339,2]
[393374021,1762543838894,-300.0,0.00017339,2]
[393374023,1762543838904,-300.0,0.00017339,2]
[393374025,1762543838916,-300.0,0.00017339,2]
[393374027,1762543838927,-300.0,0.00017339,2]
[393374029,1762543838938,-235.29,0.000174,2]
[393374031,1762543838948,-235.29,0.000174,2]
[393374033,1762543838969,-235.29,0.000175,2]
[393374035,1762543838983,-500.0,0.0001752,2]
[393374037,1762543838994,-161.45889996,0.0001752,2]
[393374039,1762543839005,-1000.0,0.00017521,2]
[393374041,1762543839015,-287.33331628,0.00017521,2]
[393374043,1762543839024,-1000.0,0.00017521,2]
[393374045,1762543839034,-797.55058667,0.00017521,2]
[393374046,1762543839044,-1000.0,0.00017521,2]
[393374048,1762543839052,-1000.0,0.00017521,2]
[393374050,1762543839063,-390.83890881,0.00017521,2]
[393374051,1762543839072,-1002.81085202,0.00017521,2]
[393374053,1762543839081,-856.2167932,0.00017521,2]
[393374055,1762543839091,-1000.0,0.00017521,2]
[393374057,1762543839102,-1000.0,0.00017521,2]
[393374058,1762543839112,-1000.0,0.00017521,2]
[393374060,1762543839122,-1000.0,0.00017521,2]
[393374062,1762543839131,-728.61283137,0.00017521,2]
[393374063,1762543839141,-1000.0,0.00017521,2]
[393374064,1762543839151,-380.46625202,0.00017521,2]
[393374065,1762543839162,-1000.0,0.00017521,2]
[393374066,1762543839172,-1000.0,0.00017521,2]
[393374067,1762543839181,-1000.0,0.00017521,2]
[393374068,1762543839191,-235.29,0.000176,2]
[393374069,1762543839201,-235.29,0.000176,2]
[393374070,1762543839210,-235.29,0.000177,2]
[393374071,1762543839220,-235.29,0.000178,2]
[393374072,1762543839230,-235.29,0.000178,2]
[393374073,1762543839240,-235.29,0.000179,2]
[393374074,1762543839253,-1000.0,0.00017996,2]
[393374075,1762543839263,-235.29,0.00018,2]
[393374076,1762543839272,-235.29,0.00018,2]
[393374077,1762543839283,-1500.0,0.00018068,2]
[393374078,1762543839293,-1500.0,0.00018068,2]
[393374079,1762543839303,-886.46848177,0.00018068,2]
[393374080,1762543839312,-1500.0,0.00018068,2]
[393374081,1762543839322,-1500.0,0.00018068,2]
[393374082,1762543839334,-1500.0,0.00018068,2]
[393374083,1762543839343,-1500.0,0.00018068,2]
[393374084,1762543839356,-1500.0,0.00018068,2]
[393374085,1762543839366,-1500.0,0.00018068,2]
[393374086,1762543839375,-1500.0,0.00018068,2]
[393374087,1762543839385,-1500.0,0.00018068,2]
[393374088,1762543839394,-1500.0,0.00018068,2]
[393374089,1762543839403,-235.29,0.000181,2]
[393374090,1762543839412,-235.29,0.000181,2]
[393374091,1762543839421,-151.0,0.000182,2]
[393374092,1762543839430,-235.29,0.000182,2]
[393374093,1762543839440,-235.29,0.000183,2]
[393374094,1762543839449,-235.29,0.000183,2]
[393374095,1762543839458,-235.29,0.000184,2]
[393374096,1762543839467,-1680.0,0.00018465,2]
[393374097,1762543839476,-235.29,0.000185,2]
[393374098,1762543839485,-235.29,0.000185,2]
[393374099,1762543839494,-420.0,0.00018537,2]
[393374100,1762543839503,-420.0,0.00018537,2]
[393374101,1762543839512,-151.0,0.000186,2]
[393374102,1762543839522,-235.29,0.000186,2]
[393374103,1762543839532,-1007.42246392,0.00018616,2]
[393374104,1762543839541,-1848.64354456,0.00018616,2]
[393374105,1762543839551,-2000.0,0.00018616,2]
[393374106,1762543839560,-2000.0,0.00018616,2]
[393374107,1762543839570,-2000.0,0.00018616,2]
[393374108,1762543839579,-1495.56427584,0.00018616,2]
[393374109,1762543839588,-2000.0,0.00018616,2]
[393374110,1762543839598,-2000.0,0.00018616,2]
[393374111,1762543839607,-2000.0,0.00018616,2]
[393374112,1762543839616,-1641.7621891,0.00018616,2]
[393374113,1762543839625,-2000.0,0.00018616,2]
[393374114,1762543839634,-235.29,0.000187,2]
[393374115,1762543839643,-235.29,0.000187,2]
[393374116,1762543839652,-177.0,0.00018736,2]
[393374117,1762543839661,-235.29,0.000188,2]
[393374118,1762543839670,-235.29,0.000188,2]
[393374119,1762543839679,-235.29,0.000189,2]
[393374120,1762543839688,-151.0,0.00019,2]
[393374121,1762543839697,-235.29,0.00019,2]
[393374122,1762543839706,-235.29,0.00019,2]
[393374123,1762543839715,-720.0,0.00019062,2]
[393374124,1762543839724,-1500.0,0.00019092,2]
[393374125,1762543839734,-235.29,0.000191,2]
[393374126,1762543839743,-273.28898679,0.00019164,2]
[393374127,1762543839752,-2506.44073364,0.00019164,2]
[393374128,1762543839761,-2500.0,0.00019164,2]
[393374129,1762543839770,-2500.0,0.00019164,2]
[393374130,1762543839779,-1687.80331138,0.00019164,2]
[393374131,1762543839788,-2500.0,0.00019164,2]
[393374132,1762543839798,-2500.0,0.00019164,2]
[393374133,1762543839807,-235.29,0.000192,2]
[393374134,1762543839816,-235.29,0.000192,2]
[393374135,1762543839825,-235.29,0.000193,2]
[393374136,1762543839835,-151.0,0.000194,2]
[393374137,1762543839844,-235.29,0.000194,2]
[393374138,1762543839854,-235.29,0.000194,2]
[393374139,1762543839863,-235.29,0.000195,2]
[393374140,1762543839872,-235.29,0.000196,2]
[393374141,1762543839881,-235.29,0.000196,2]
[393374142,1762543839891,-944.8739615,0.00019623,2]
[393374143,1762543839900,-235.29,0.000197,2]
[393374144,1762543839909,-235.29,0.000197,2]
[393374145,1762543839922,-3000.0,0.00019712,2]
[393374146,1762543839931,-3000.0,0.00019712,2]
[393374147,1762543839940,-3000.0,0.00019712,2]
[393374148,1762543839950,-3000.0,0.00019712,2]
[393374149,1762543839959,-151.0,0.000198,2]
[393374150,1762543839968,-235.29,0.000198,2]
[393374151,1762543839977,-235.29,0.000199,2]
[393374152,1762543839987,-235.29,0.000199,2]
[393374153,1762543839996,-235.29,0.0002,2]
[393374155,1762543840006,-235.29,0.000201,2]
[393374158,1762543840099,-244506.59967553,0.00020132,2]
[393374160,1762543840108,-500.30519726,0.00020173,2]
[393374161,1762543840118,-172.10540477,0.00020173,2]
[393374163,1762543840127,-503.90957819,0.00020173,2]
[393374165,1762543840136,-286.8308651,0.00020173,2]
[393374168,1762543840146,-500.0,0.00020173,2]
[393374170,1762543840156,-501.5332089,0.00020173,2]
[393374172,1762543840165,-452.62177334,0.00020173,2]
[393374174,1762543840174,-500.26794072,0.00020173,2]
[393374176,1762543840184,-622.37700586,0.00020173,2]
[393374178,1762543840193,-500.0,0.00020173,2]
[393374180,1762543840202,-506.24072444,0.00020173,2]
[393374182,1762543840211,-165.05326092,0.00020173,2]
[393374184,1762543840220,-402.3310386,0.00020173,2]
[393374186,1762543840229,-500.90365827,0.00020173,2]
[393374188,1762543840239,-500.0,0.00020188,2]
[393374190,1762543840250,-500.0,0.000202,2]
[393374192,1762543840263,-587.0,0.00020247,2]
[393374194,1762543840273,-448.0,0.00020247,2]
[393374196,1762543840283,-500.0,0.0002026,2]
[393374198,1762543840292,-500.0,0.0002026,2]
[393374200,1762543840303,-3500.0,0.0002026,2]
[393374202,1762543840313,-1151.0,0.00020272,2]
[393374204,1762543840323,-151.0,0.000203,3]
[393374206,1762543840333,-500.0,0.00020474,2]
[393374207,1762543840343,-330.45550268,0.00020662,2]
[393374210,1762543840354,-151.0,0.000207,3]
[393374212,1762543840364,-1002.65858154,0.00020721,2]
[393374214,1762543840374,-204.0,0.00020736,2]
[393374216,1762543840384,-330.45550264,0.0002074,2]
[393374218,1762543840393,-500.0,0.00020748,2]
[393374220,1762543840402,-354.0,0.00020756,2]
[393374222,1762543840412,-5000.0,0.00020762,2]
[393374224,1762543840421,-500.0,0.00020808,2]
[393374226,1762543840431,-330.45550264,0.00020818,2]
[393374228,1762543840440,-1917.63463913,0.00020875,2]
[393374230,1762543840450,-269.24146543,0.00020883,2]
[393374232,1762543840460,-330.45550264,0.00020895,2]
[393374234,1762543840470,-1064.0,0.00020934,2]
[393374236,1762543840479,-864.0,0.00020968,2]
[393374238,1762543840489,-160.45282516,0.00020972,2]
[393374240,1762543840498,-1200.0,0.00020972,2]
[393374242,1762543840507,-500.0,0.00020972,2]
[393374244,1762543840516,-500.0,0.00020973,2]
[393374246,1762543840525,-512.17112081,0.00020973,2]
[393374248,1762543840535,-500.0,0.00020973,2]
[393374250,1762543840544,-500.0,0.00020973,2]
[393374252,1762543840554,-158.18620248,0.00020973,2]
[393374254,1762543840562,-500.0,0.00020973,2]
[393374256,1762543840573,-500.0,0.00020973,2]
[393374258,1762543840582,-500.0,0.00020973,2]
[393374260,1762543840591,-237.96416474,0.00020973,2]
[393374262,1762543840602,-500.0,0.00020973,2]
[393374264,1762543840611,-500.0,0.00020973,2]
[393374266,1762543840620,-500.0,0.00020973,2]
[393374268,1762543840630,-500.0,0.00020973,2]
[393374270,1762543840639,-2532.67549511,0.00020973,2]
[393374272,1762543840649,-500.0,0.00020973,2]
[393374274,1762543840659,-500.0,0.00020973,2]
[393374276,1762543840668,-500.0,0.00020973,2]
[393374278,1762543840678,-400.00000003,0.00020973,2]
[393374280,1762543840688,-501.18922418,0.00020973,2]
[393374282,1762543840697,-500.0,0.00020973,2]
[393374284,1762543840706,-2532.67549511,0.00020973,2]
[393374286,1762543840715,-614.22396037,0.00020973,2]
[393374288,1762543840724,-500.0,0.00020973,2]
[393374290,1762543840733,-500.0,0.00020973,2]
[393374292,1762543840742,-500.0,0.00020973,2]
[393374294,1762543840751,-500.0,0.00020973,2]
[393374296,1762543840761,-286.54811086,0.00020973,2]
[393374298,1762543840770,-500.0,0.00020973,2]
[393374300,1762543840779,-2532.67549511,0.00020973,2]
[393374302,1762543840789,-500.0,0.00020973,2]
[393374304,1762543840798,-500.0,0.00020973,2]
[393374306,1762543840807,-500.0,0.00020973,2]
[393374308,1762543840816,-500.0,0.00020973,2]
[393374310,1762543840825,-2532.67549511,0.00020973,2]
[393374312,1762543840834,-500.0,0.00020973,2]
[393374314,1762543840843,-2532.67549511,0.00020973,2]
[393374316,1762543840858,-500.0,0.00020973,2]
[393374318,1762543840867,-500.0,0.00020973,2]
[393374320,1762543840876,-2532.67549511,0.00020973,2]
[393374322,1762543840884,-500.0,0.00020973,2]
[393374324,1762543840894,-646.70124116,0.00020973,2]
[393374326,1762543840903,-2532.67549511,0.00020973,2]
[393374328,1762543840912,-500.0,0.00020973,2]
[393374330,1762543840921,-500.0,0.00020973,2]
[393374332,1762543840930,-2532.67549511,0.00020973,2]
[393374334,1762543840939,-500.0,0.00020973,2]
[393374336,1762543840949,-397.36529946,0.00020973,2]
[393374338,1762543840958,-2532.67549511,0.00020973,2]
[393374340,1762543840967,-500.0,0.00020973,2]
[393374342,1762543840976,-500.0,0.00020973,2]
[393374344,1762543840985,-500.0,0.00020973,2]
[393374346,1762543840994,-2532.67549511,0.00020973,2]
[393374348,1762543841003,-500.0,0.00020973,2]
[393374350,1762543841012,-500.0,0.00020973,2]
[393374351,1762543841021,-2532.67549511,0.00020973,2]
[393374352,1762543841029,-500.0,0.00020973,2]
[393374353,1762543841039,-2532.67549511,0.00020973,2]
[393374354,1762543841049,-2532.67549511,0.00020973,2]
[393374355,1762543841059,-500.0,0.00020973,2]
[393374356,1762543841068,-500.0,0.00020973,2]
[393374357,1762543841077,-2532.67549511,0.00020973,2]
[393374358,1762543841087,-2532.67549511,0.00020973,2]
[393374359,1762543841096,-556.24674472,0.00020973,2]
[393374360,1762543841106,-500.0,0.00020973,2]
[393374361,1762543841115,-2532.67549511,0.00020973,2]
[393374362,1762543841124,-2532.67549511,0.00020973,2]
[393374363,1762543841133,-500.0,0.00020973,2]
[393374364,1762543841142,-2532.67549511,0.00020973,2]
[393374365,1762543841151,-2532.67549511,0.00020973,2]
[393374366,1762543841161,-500.0,0.00020973,2]
[393374367,1762543841170,-2532.67549511,0.00020973,2]
[393374368,1762543841179,-2532.67549511,0.00020973,2]
[393374369,1762543841188,-2532.67549511,0.00020973,2]
[393374370,1762543841198,-2532.67549511,0.00020973,2]
[393374371,1762543841208,-2532.67549511,0.00020973,2]
[393374372,1762543841217,-2532.67549511,0.00020973,2]
[393374373,1762543841227,-2532.67549511,0.00020973,2]
[393374374,1762543841236,-2532.67549511,0.00020973,2]
[393374375,1762543841249,-2532.67549511,0.00020973,2]
[393374376,1762543841259,-2532.67549511,0.00020973,2]
[393374377,1762543841268,-2532.67549511,0.00020973,2]
[393374378,1762543841277,-2532.67549511,0.00020973,2]
[393374379,1762543841286,-2532.67549511,0.00020973,2]
[393374380,1762543841296,-2532.67549511,0.00020973,2]
[393374381,1762543841305,-2532.67549511,0.00020973,2]
[393374382,1762543841316,-2532.67549511,0.00020973,2]
[393374383,1762543841328,-2532.67549511,0.00020973,2]
[393374384,1762543841337,-2532.67549511,0.00020973,2]
[393374385,1762543841348,-500.0,0.00020973,2]
[393374386,1762543841357,-2532.67549511,0.00020973,2]
[393374387,1762543841367,-2532.67549511,0.00020973,2]
[393374388,1762543841376,-2532.67549511,0.00020973,2]
[393374389,1762543841386,-2532.67549511,0.00020973,2]
[393374390,1762543841395,-2532.67549511,0.00020973,2]
[393374391,1762543841404,-2532.67549511,0.00020973,2]
[393374392,1762543841413,-2532.67549511,0.00020973,2]
[393374393,1762543841423,-2532.67549511,0.00020973,2]
[393374394,1762543841432,-2532.67549511,0.00020973,2]
[393374395,1762543841441,-2532.67549511,0.00020973,2]
[393374396,1762543841450,-2532.67549511,0.00020973,2]
[393374397,1762543841459,-2532.67549511,0.00020973,2]
[393374398,1762543841468,-2532.67549511,0.00020973,2]
[393374399,1762543841477,-2532.67549511,0.00020973,2]
[393374400,1762543841487,-2532.67549511,0.00020973,2]
[393374401,1762543841496,-2532.67549511,0.00020973,2]
[393374402,1762543841506,-2532.67549511,0.00020973,2]
[393374403,1762543841516,-2532.67549511,0.00020973,2]
[393374404,1762543841526,-2532.67549511,0.00020973,2]
[393374405,1762543841535,-2532.67549511,0.00020973,2]
[393374406,1762543841544,-2532.67549511,0.00020973,2]
[393374407,1762543841554,-2532.67549511,0.00020973,2]
[393374408,1762543841564,-2532.67549511,0.00020973,2]
[393374409,1762543841574,-2532.67549511,0.00020973,2]
[393374410,1762543841584,-3006.55791832,0.00020973,2]
[393374411,1762543841596,-3006.55791832,0.00020973,2]
[393374412,1762543841608,-3006.55791832,0.00020973,2]
[393374413,1762543841619,-3006.55791832,0.00020973,2]
[393374414,1762543841629,-3006.55791832,0.00020973,2]
[393374415,1762543841639,-3006.55791832,0.00020973,2]
[393374416,1762543841649,-3006.55791832,0.00020973,2]
[393374417,1762543841660,-3006.55791832,0.00020973,2]
[393374418,1762543841670,-291.8883745,0.00020973,2]
[393374419,1762543841680,-3006.55791832,0.00020973,2]
[393374420,1762543841689,-3006.55791832,0.00020973,2]
[393374421,1762543841698,-3006.55791832,0.00020973,2]
[393374422,1762543841708,-3006.55791832,0.00020973,2]
[393374423,1762543841717,-3006.55791832,0.00020973,2]
[393374424,1762543841727,-3006.55791832,0.00020973,2]
[393374425,1762543841735,-3006.55791832,0.00020973,2]
[393374426,1762543841744,-3006.55791832,0.00020973,2]
[393374427,1762543841754,-3006.55791832,0.00020973,2]
[393374428,1762543841763,-3006.55791832,0.00020973,2]
[393374429,1762543841772,-3006.55791832,0.00020973,2]
[393374430,1762543841781,-3006.55791832,0.00020973,2]
[393374431,1762543841790,-3006.55791832,0.00020973,2]
[393374432,1762543841800,-3006.55791832,0.00020973,2]
[393374433,1762543841809,-180.50396869,0.00020973,2]
[393374434,1762543841818,-330.45550264,0.00020973,2]
[393374435,1762543841828,-500.0,0.00020973,2]
[393374436,1762543841837,-500.0,0.00020973,2]
[393374437,1762543841847,-500.0,0.00020973,2]
[393374438,1762543841856,-500.0,0.00020973,2]
[393374439,1762543841865,-500.0,0.00020973,2]
[393374440,1762543841875,-500.0,0.00020975,2]
[393374441,1762543841883,-500.0,0.00020975,2]
[393374442,1762543841892,-500.0,0.00020975,2]
[393374443,1762543841902,-500.0,0.00020975,2]
[393374444,1762543841911,-4605.08,0.00020976,3]
[393374445,1762543841919,-2302.54,0.00020976,3]
[393374446,1762543841928,-1151.27,0.00020976,3]
[393374447,1762543841937,-575.63,0.00020976,3]
[393374448,1762543841947,-287.82,0.00020976,3]
[393374449,1762543841956,-863.47,0.00020976,3]
[393374450,1762543841965,-500.0,0.00020982,2]
[393374451,1762543842045,-500.0,0.00020982,2]
[393374452,1762543842054,-500.0,0.00020982,2]
[393374453,1762543842063,-500.0,0.00020982,2]
[393374454,1762543842072,-500.0,0.00020982,2]
[393374455,1762543842081,-500.0,0.00020982,2]
[393374456,1762543842090,-500.0,0.00020982,2]
[393374457,1762543842099,-500.0,0.00020982,2]
[393374458,1762543842108,-646.38112703,0.00020982,2]
[393374459,1762543842118,-151.0,0.00020983,7]
[393374460,1762543842128,-151.0,0.00020983,7]
[393374461,1762543842137,-151.0,0.00020983,7]
[393374462,1762543842146,-151.0,0.00020983,7]
[393374463,1762543842156,-153.150577,0.00020983,7]
[393374464,1762543842165,-556.20495,0.00020984,7]
[393374465,1762543842175,-556.20495,0.00020984,7]
[393374466,1762543842184,-556.20495,0.00020984,7]
[393374467,1762543842193,-556.20495,0.00020984,7]
[393374468,1762543842203,-464.849113,0.00020984,7]
[393374469,1762543842212,-556.20495,0.00020984,7]
[393374470,1762543842221,-464.849113,0.00020984,7]
[393374471,1762543842230,-556.20495,0.00020984,7]
[393374472,1762543842239,-464.849113,0.00020984,7]
[393374473,1762543842250,-556.20495,0.00020984,7]
[393374474,1762543842261,-556.20495,0.00020984,7]
[393374475,1762543842270,-556.20495,0.00020984,7]
[393374476,1762543842279,-556.20495,0.00020984,7]
[393374477,1762543842289,-556.20495,0.00020984,7]
[393374478,1762543842299,-556.20495,0.00020984,7]
[393374479,1762543842307,-500.0,0.00020984,2]
[393374480,1762543842316,-500.0,0.00020984,2]
[393374481,1762543842326,-500.0,0.00020984,2]
[393374482,1762543842336,-500.0,0.00020984,2]
[393374483,1762543842345,-500.0,0.00020984,2]
[393374484,1762543842356,-500.0,0.00020984,2]
[393374485,1762543842365,-500.0,0.00020984,2]
[393374486,1762543842375,-500.0,0.00020984,2]
[393374487,1762543842384,-500.0,0.00020984,2]
[393374488,1762543842393,-500.0,0.00020984,2]
[393374489,1762543842403,-500.0,0.00020984,2]
[393374490,1762543842412,-464.849113,0.00020984,7]
[393374491,1762543842421,-464.849113,0.00020984,7]
[393374492,1762543842430,-464.849113,0.00020984,7]
[393374493,1762543842441,-464.849113,0.00020984,7]
[393374494,1762543842450,-464.849113,0.00020984,7]
[393374495,1762543842459,-464.849113,0.00020984,7]
[393374496,1762543842468,-464.849113,0.00020984,7]
[393374497,1762543842477,-464.849113,0.00020984,7]
[393374498,1762543842486,-464.849113,0.00020984,7]
[393374500,1762543842496,-151.0,0.00020985,7]
[393374501,1762543842505,-151.0,0.00020985,7]
[393374502,1762543842514,-151.0,0.00020985,7]
[393374503,1762543842523,-500.0,0.00020986,2]
[393374504,1762543842533,-500.0,0.00020986,2]
[393374505,1762543842542,-500.0,0.00020986,2]
[393374506,1762543842551,-500.0,0.00020986,2]
[393374507,1762543842560,-500.0,0.00020986,2]
[393374508,1762543842570,-171.88466099,0.00020986,2]
[393374509,1762543842579,-151.0,0.00020986,7]
[393374510,1762543842587,-152.369349,0.00020986,7]
[393374511,1762543842596,-171.012836,0.00020986,7]
[393374512,1762543842607,-500.0,0.00020986,2]
[393374513,1762543842616,-500.0,0.00020986,2]
[393374514,1762543842625,-500.0,0.00020986,2]
[393374515,1762543842634,-500.0,0.00020986,2]
[393374516,1762543842644,-620.85571295,0.00020986,2]
[393374518,1762543842654,-500.0,0.00020986,2]
[393374519,1762543842662,-500.0,0.00020986,2]
[393374520,1762543842672,-500.0,0.00020986,2]
[393374521,1762543842681,-500.0,0.00020986,2]
[393374522,1762543842690,-500.0,0.00020986,2]
[393374523,1762543842699,-500.0,0.00020986,2]
[393374524,1762543842710,-500.0,0.00020986,2]
[393374525,1762543842719,-500.0,0.00020986,2]
[393374526,1762543842728,-500.0,0.00020986,2]
[393374527,1762543842737,-500.0,0.00020986,2]
[393374528,1762543842746,-500.0,0.00020986,2]
[393374529,1762543842755,-500.0,0.00020986,2]
[393374530,1762543842764,-500.0,0.00020986,2]
[393374531,1762543842773,-500.0,0.00020986,2]
[393374532,1762543842782,-500.0,0.00020986,2]
[393374533,1762543842791,-1273.2,0.00020986,2]
[393374534,1762543842800,-1273.2,0.00020986,2]
[393374535,1762543842810,-1273.2,0.00020986,2]
[393374536,1762543842819,-1273.2,0.00020986,2]
[393374537,1762543842828,-1273.2,0.00020986,2]
[393374538,1762543842837,-1273.2,0.00020986,2]
[393374540,1762543842846,-1273.2,0.00020986,2]
[393374541,1762543842857,-1273.2,0.00020986,2]
[393374542,1762543842866,-1273.2,0.00020986,2]
[393374543,1762543842874,-1273.2,0.00020986,2]
[393374544,1762543842883,-1273.2,0.00020986,2]
[393374545,1762543842892,-1273.2,0.00020986,2]
[393374546,1762543842901,-1273.2,0.00020986,2]
[393374547,1762543842910,-1273.2,0.00020986,2]
[393374548,1762543842920,-1273.2,0.00020986,2]
[393374551,1762543842928,-556.20495,0.00020987,7]
[393374552,1762543842938,-556.20495,0.00020987,7]
[393374553,1762543842947,-464.849113,0.00020987,7]
[393374554,1762543842956,-556.20495,0.00020987,7]
[393374555,1762543842966,-556.20495,0.00020987,7]
[393374556,1762543842975,-464.849113,0.00020987,7]
[393374557,1762543842984,-464.849113,0.00020987,7]
[393374558,1762543842994,-464.849113,0.00020987,7]
[393374559,1762543843003,-151.0,0.00020988,7]
[393374560,1762543843012,-151.0,0.00020988,7]
[393374561,1762543843023,-269.244321,0.00020988,7]
[393374562,1762543843032,-500.0,0.00020988,2]
[393374563,1762543843043,-1273.2,0.00020988,2]
[393374564,1762543843054,-153.097023,0.00020989,7]
[393374565,1762543843064,-500.0,0.00020989,2]
[393374566,1762543843073,-540.00602318,0.00020989,2]
[393374567,1762543843082,-500.0,0.00020989,2]
[393374568,1762543843092,-500.0,0.00020989,2]
[393374569,1762543843103,-500.0,0.00020989,2]
[393374570,1762543843113,-500.0,0.00020989,2]
[393374571,1762543843123,-500.0,0.00020989,2]
[393374572,1762543843133,-500.0,0.00020989,2]
[393374573,1762543843142,-500.0,0.00020989,2]
[393374574,1762543843150,-500.0,0.00020989,2]
[393374575,1762543843160,-500.0,0.00020989,2]
[393374576,1762543843170,-500.0,0.00020989,2]
[393374577,1762543843180,-500.0,0.00020989,2]
[393374578,1762543843190,-500.0,0.00020989,2]
[393374579,1762543843199,-589.5677064,0.00020989,2]
[393374580,1762543843209,-500.0,0.00020989,2]
[393374581,1762543843218,-500.0,0.00020989,2]
[393374582,1762543843227,-500.0,0.00020989,2]
[393374583,1762543843236,-175.98272982,0.00020989,2]
[393374585,1762543843247,-500.0,0.00020989,2]
[393374587,1762543843262,-500.0,0.00020989,2]
[393374588,1762543843271,-522.21025299,0.00020989,2]
[393374589,1762543843280,-1273.2,0.00020989,2]
[393374590,1762543843291,-1273.2,0.00020989,2]
[393374591,1762543843300,-1273.2,0.00020989,2]
[393374592,1762543843309,-1273.2,0.00020989,2]
[393374593,1762543843319,-1273.2,0.00020989,2]
[393374594,1762543843329,-1273.2,0.00020989,2]
[393374595,1762543843339,-1273.2,0.00020989,2]
[393374596,1762543843348,-1273.25696356,0.00020989,2]
[393374597,1762543843359,-556.20495,0.0002099,7]
[393374598,1762543843370,-556.20495,0.0002099,7]
[393374599,1762543843380,-556.20495,0.0002099,7]
[393374600,1762543843389,-556.204947,0.0002099,7]
[393374601,1762543843399,-464.849113,0.0002099,7]
[393374602,1762543843408,-464.849113,0.0002099,7]
[393374603,1762543843417,-464.849122,0.0002099,7]
[393374604,1762543843427,-151.0,0.00021,3]
[393374605,1762543843436,-7078.38569,0.00021,2]
[393374606,1762543843445,-151.0,0.00021,3]
[393374607,1762543843454,-151.0,0.00021,4]
[393374608,1762543843462,-151.0,0.00021,4]
[393374609,1762543843472,-151.0,0.00021,3]
[393374610,1762543843481,-151.0,0.00021,4]
[393374611,1762543843490,-151.0,0.00021,4]
[393374612,1762543843500,-151.0,0.00021,4]
[393374613,1762543843509,-151.0,0.00021,4]
[393374614,1762543843518,-151.0,0.00021,4]
[393374615,1762543843529,-151.0,0.00021,3]
[393374616,1762543843538,-151.0,0.00021,3]
[393374617,1762543843548,-151.0,0.00021,3]
[393374618,1762543843557,-151.0,0.00021,4]
[393374619,1762543843566,-151.0,0.00021,4]
[393374620,1762543843576,-151.0,0.00021,3]
[393374621,1762543843586,-151.0,0.00021,3]
[393374622,1762543843596,-151.0,0.00021,4]
[393374623,1762543843607,-151.0,0.00021,3]
[393374624,1762543843617,-500.0,0.00021022,2]
[393374625,1762543843626,-160.0,0.00021043,2]
[393374626,1762543843635,-155.69944327,0.00021053,2]